Cogmind - Beta 17.1 @@@ ROGUE MODE // 2026.09.10 @ 10:31:40 Player: MOPO3 Result: Self-destructed Performance ------------- Evolutions (2) 1000 Regions Visited (3) 600 Robots Destroyed (71) 355 Value Destroyed (1717) 1717 Prototype IDs (5) 100 Alien Tech Used (0) 0 Bonus (0) 0 TOTAL SCORE: 3772 Bonus ------- None Cogmind --------- Core Integrity 523/550 Matter 12/300 Energy 46/100 System Corruption 0% Temperature Critical (555) Movement Rolling (145) Ox5 Location -8/Materials Parts ------- > --- POWER (1) -------- (None) > --- PROPULSION (2) --- Wheel Wheel > --- UTILITY (4) ------ Huge Storage Unit Hardened Medium Armor Plating Shield Generator Hacking Suite > --- WEAPON (4) ------- Gauss Cannon Gauss Cannon Gauss Cannon Gauss Cannon > --- INVENTORY (25) --- Heavy Ion Engine Cooled Ion Engine Aluminum Leg Wheel Wheel Wheel Improved Heat Sink Sensor Array Seismic Detector Medium Armor Plating Hacking Suite Field Recycling Unit (0) Light Assault Rifle Light Assault Rifle Light Assault Rifle Shotgun Improved Assault Rifle High-powered Shotgun High-powered Shotgun High-powered Shotgun Grenade Launcher Grenade Launcher Grenade Launcher Datajack Mining Claw Peak State ------------ > --- POWER ------------ Light Nuclear Core > --- PROPULSION ------- Wheel Wheel > --- UTILITY ---------- Huge Storage Unit Hardened Medium Armor Plating Shield Generator Hacking Suite > --- WEAPON ----------- Gauss Cannon Gauss Cannon Gauss Cannon Gauss Cannon > --- INVENTORY -------- Heavy Ion Engine Cooled Ion Engine Aluminum Leg Wheel Wheel Wheel Wheel Improved Heat Sink Sensor Array Seismic Detector Medium Armor Plating Hacking Suite Field Recycling Unit Light Assault Rifle Light Assault Rifle Light Assault Rifle Shotgun Improved Assault Rifle High-powered Shotgun High-powered Shotgun Grenade Launcher Grenade Launcher Grenade Launcher Datajack Mining Claw [Rating: 34] Favorites ----------- Power Light Nuclear Core Engine Cooled Ion Engine Power Core Light Nuclear Core Propulsion Wheel Treads Light Treads Wheel Wheel Utility Huge Storage Unit Device Seismic Detector Storage Huge Storage Unit Hackware Hacking Suite Protection Hardened Light Armor Plating Weapon Light Assault Rifle Energy Gun EM Pulse Gun Ballistic Gun Light Assault Rifle Ballistic Cannon Gauss Cannon Build | -11 -10 -9 -8 ------- Run | Yrd Mat Mat Mat Slots Evolved 4 | . . 2 2 Power . | . . . . Propulsion . | . . . . Utility 2 | . . 1 1 Weapon 2 | . . 1 1 Parts Attached 42 | 9 9 16 8 Power 7 | 1 2 4 . Engine 4 | 1 1 2 . Core 3 | . 1 2 . Reactor . | . . . . Propulsion 9 | 2 3 3 1 Treads 2 | 2 . . . Leg . | . . . . Wheel 7 | . 3 3 1 Hover . | . . . . Flight . | . . . . Utility 11 | 3 2 4 2 Device 4 | 2 . 2 . Storage 4 | 1 2 1 . Processor . | . . . . Hackware 1 | . . . 1 Protection 2 | . . 1 1 Artifact . | . . . . Weapon 15 | 3 2 5 5 Energy Gun 3 | 2 1 . . Energy Cannon . | . . . . Ballistic Gun 8 | 1 1 5 1 Ballistic Cannon 4 | . . . 4 Launcher . | . . . . Special Weapon . | . . . . Impact Weapon . | . . . . Slashing Weapon . | . . . . Piercing Weapon . | . . . . Special Melee Weapon . | . . . . Unidentified Prototypes 1 | . . 1 . Parts Lost 13 | . 3 9 1 Power 4 | . 1 2 1 Propulsion 3 | . 1 2 . Utility 1 | . . 1 . Weapon 5 | . 1 4 . Highest Loss Streak 4 | . 2 4 1 To Critical Strikes . | . . . . Average Backups 15 | . 7 20 24 Power . | . . . 2 Propulsion 4 | . 2 6 5 Utility 4 | . 2 5 6 Weapon 5 | . 2 6 9 Tool/Special . | . . . . Unused Backups 27 | . . 7 20 Power . | . . . . Propulsion 8 | . . 3 5 Utility 6 | . . 1 5 Weapon 12 | . . 3 9 Tool/Special 1 | . . . 1 Average Slot Usage (%) 98 | . 99 96 99 Engine 7 | . 12 6 . Core 3 | . 1 3 8 Treads 9 | . 25 . . Wheel 13 | . 2 20 18 Device 15 | . 14 15 16 Storage 11 | . 14 11 9 Hackware 1 | . . . 8 Protection 2 | . . 5 1 Energy Gun 4 | . 8 2 . Ballistic Gun 21 | . 19 30 4 Ballistic Cannon 5 | . . . 31 Peak Build Rating 34 | 9 10 18 34 Average Rating 14 | 6 7 14 30 On Entrance 8 | . 7 10 16 Avg Prop Armor Cover (%) . | . . . . Naked Turns . | . . . . Heaviest Build 123 | 15 90 100 123 Greatest Support 40 | 40 40 26 20 Greatest Overweight (x) 9 | 3 8 9 6 Average Overweight (x) 2 | . 1 3 4 Largest Inventory Capacity 25 | 8 25 25 25 Average Capacity 21 | 7 17 25 25 Most Carried 25 | 1 13 25 25 Average Carried 15 | . 7 20 24 Final Capacity 25 | 8 25 25 25 Final Carried 25 | 1 13 23 25 Class Distribution -------------------- 39% | Mutant 28% | Scavenger-Tank 14% | Skirmisher 12% | Tank 3% | Scavenger-Mutant Dominant Class ---------------- Mutant | -10/Materials Skirmisher | -9/Materials Scavenger-Tank | -8/Materials Resources | -11 -10 -9 -8 ----------- Run | Yrd Mat Mat Mat Matter Collected 1560 | 199 440 595 326 Remotely . | . . . . Salvage Created 2443 | 111 619 1298 415 Parts 174 | 8 36 99 31 Haulers Intercepted 5 | . 1 3 1 Recyclers Shooed 1 | . 1 . . Parts Field Recycled . | . . . . Retrieved Matter . | . . . . Parts Self-Destructed . | . . . . Prevented . | . . . . Parts Restored . | . . . . Kills | -11 -10 -9 -8 ------- Run | Yrd Mat Mat Mat Combat Hostiles Destroyed 47 | . 10 28 9 Guns 38 | . 10 28 . Cannons 9 | . . . 9 Classes Destroyed 12 | 2 5 4 1 Worker 6 | . 3 3 . Builder 3 | . . 1 2 Tunneler 4 | 2 . 1 1 Hauler 5 | . 1 3 1 Recycler 2 | 1 1 . . Operator 2 | . . 1 1 Watcher 2 | . 2 . . Swarmer 11 | . 3 8 . Grunt 29 | . 7 16 6 Brawler 1 | . . 1 . Sentry 4 | . . 3 1 Specialist 2 | . . . 2 Best Kill Streak 14 | 1 6 14 4 Combat Bots Only 8 | . 3 8 3 Max Kills in Single Turn 2 | 1 2 1 2 Gunslinging 1 | . 1 . . Exploded . | . . . . Melee . | . . . . Uniques/NPCs Destroyed . | . . . . Combat | -11 -10 -9 -8 -------- Run | Yrd Mat Mat Mat Hostile Shots Fired 195 | . 77 82 36 Missed 50 | . 19 22 9 Hits 145 | . 58 60 27 Projectile 145 | . 58 60 27 Critical Strikes 4 | . 2 1 1 Damage Taken 1585 | . 678 590 317 Core 152 | . 74 51 27 Absorbed by Shields 147 | . . 56 91 Core Remaining (%) 85 | 100 70 87 . Volleys Fired 157 | 7 56 69 25 Largest 4 | 2 2 3 4 Hottest 160 | 60 60 83 160 Shots Fired 417 | 14 112 202 89 Gun 332 | 14 112 202 4 Cannon 85 | . . . 85 Launcher . | . . . . Special . | . . . . Kinetic 362 | 7 86 180 89 Thermal . | . . . . Explosive . | . . . . Electromagnetic 55 | 7 26 22 . Robot Hit Streak 11 | 8 7 11 4 Robot Miss Streak 6 | 3 6 4 4 Penetration Max . | . . . . Secondary Targets 6 | . 3 3 . Max Gunslinging Chain 1 | . 1 1 . Shots Hit Robots 231 | 9 55 126 41 Core Hits 114 | 4 28 64 18 Critical Kills 1 | . 1 . . Critical Parts Destroyed 1 | . . 1 . Critical Strikes 8 | 1 1 1 5 Destroy 2 | . 1 1 . Blast 5 | . . . 5 Corrupt 1 | 1 . . . Melee Attacks . | . . . . Impact . | . . . . Slashing . | . . . . Piercing . | . . . . Sneak Attacks . | . . . . Combat Hostiles . | . . . . Follow-up Attacks . | . . . . Damage Inflicted 3509 | 116 819 1372 1202 Guns 2305 | 115 784 1372 34 Cannons 1168 | . . . 1168 Explosions 35 | . 35 . . Melee . | . . . . Ramming 1 | 1 . . . Kinetic 2959 | 62 541 1154 1202 Thermal 35 | . 35 . . Explosive . | . . . . Electromagnetic 514 | 53 243 218 . Impact . | . . . . Slashing . | . . . . Piercing . | . . . . Highest Corruption . | . . . . Average Corruption . | . . . . Corruption Purged . | . . . . Corruption Blocked . | . . . . Overload Shots . | . . . . Overflow Damage 35 | . 4 . 31 Projectiles 31 | . . . 31 Explosions 4 | . 4 . . Melee . | . . . . Knockbacks 14 | . . . 14 Impact . | . . . . Kinetic 12 | . . . 12 Secondary 2 | . . . 2 Self-Inflicted Damage . | . . . . Shots . | . . . . Rammed 1 | 1 . . . Targets Rammed 1 | 1 . . . Kicked . | . . . . Crushed . | . . . . Highest Temperature 560 | . 130 141 560 Average Temperature 86 | . 55 25 179 Received Heat Transfer 769 | . 339 247 183 Effects 17 | . . . 17 Shutdowns 1 | . . . 1 Interference 6 | . . . 6 Matter Decay 1 | . . . 1 Short Circuit 3 | . . . 3 Damage (major) 6 | . . . 6 Siege Activations . | . . . . Martial Activations . | . . . . Shielding Activations . | . . . . Robots Disrupted . | . . . . Combat Hostiles . | . . . . Robots Corrupted . | . . . . Combat Hostiles . | . . . . Parts Fried . | . . . . Impact Corruptions . | . . . . Robots Melted . | . . . . Combat Hostiles . | . . . . Parts Melted . | . . . . Heat Transferred 50 | . 50 . . Parts Sabotaged . | . . . . Parts Stolen . | . . . . Parts Stripped . | . . . . Power Chain Reactions 1 | . 1 . . Alert | -11 -10 -9 -8 ------- Run | Yrd Mat Mat Mat Maximum Alert Level 1 | . . 1 1 Low Security (%) 88 | 100 100 74 97 Level 1 11 | . . 25 2 Level 2 . | . . . . Level 3 . | . . . . Level 4 . | . . . . Level 5 . | . . . . High Security . | . . . . Max Security . | . . . . Peak Influence 289 | 5 76 289 226 Initial 117 | . . 5 117 Average 82 | 1 19 147 76 Influence Increases 1568 | 15 354 860 339 Destroy 0b10 Robot/C 940 | . 200 560 180 Destroy 0b10 Robot/NC 120 | 15 35 45 25 Destroy Leader 244 | . 56 136 52 Successful Hack 23 | . 14 9 . Select Force Hacks 90 | . 30 60 . Disable Machine 15 | . . . 15 Destroy Structure 61 | . 4 5 52 Lose Combat Pursuer 75 | . 15 45 15 Influence Decreases 1360 | 15 339 598 408 Entered New Map 170 | . . 10 160 Time Decay 1080 | 15 329 498 238 Lost Part 110 | . 10 90 10 Squads Dispatched 10 | . 1 5 4 Investigation 5 | . 1 3 1 Extermination . | . . . . Reinforcement 5 | . . 2 3 Assault . | . . . . Garrison . | . . . . Intercept . | . . . . Searches Triggered . | . . . . Construction Impeded 1 | . . . 1 Haulers Reinforced . | . . . . Active Scanning Responses . | . . . . Cargo Convoy Interrupts . | . . . . Stealth | -11 -10 -9 -8 --------- Run | Yrd Mat Mat Mat Distress Signals 6 | . . 4 2 Communications Jammed . | . . . . Distress Signals . | . . . . Times Spotted 72 | . 16 42 14 Peak Tracking Total 6 | . 3 4 6 Tactical Retreats 5 | . 1 3 1 Traps | -11 -10 -9 -8 ------- Run | Yrd Mat Mat Mat Traps Triggered 5 | . . 4 1 Indirectly . | . . . . Trap Hack Attempts . | . . . . Triggered . | . . . . Disarmed . | . . . . Reprogrammed . | . . . . Reused . | . . . . Traps Extracted . | . . . . Installed . | . . . . Triggered . | . . . . Machines | -11 -10 -9 -8 ---------- Run | Yrd Mat Mat Mat Machines Disabled 1 | . . . 1 Max in Single Turn 1 | . . . 1 Machines Repaired . | . . . . Machines Dismantled . | . . . . Machines Sabotaged . | . . . . Overloaded Fab Kills . | . . . . Hacking | -11 -10 -9 -8 --------- Run | Yrd Mat Mat Mat Machines Accessed 14 | . 7 6 1 Terminals 8 | . 6 2 . Fabricators . | . . . . Repair Stations . | . . . . Recycling Units 3 | . 1 2 . Scanalyzers 3 | . . 2 1 Garrison Access . | . . . . Total Hacks 40 | . 20 18 2 Successful 19 | . 7 10 2 Failed 20 | . 13 7 . Catastrophic 4 | . 3 1 . Database Lockouts 1 | . . 1 . Manual 27 | . 17 10 . Terminals 28 | . 19 9 . Fabricators . | . . . . Repair Stations . | . . . . Recycling Units 6 | . 1 5 . Scanalyzers 6 | . . 4 2 Garrison Access . | . . . . Terminal Hacks 4 | . 3 1 . Record 1 | . 1 . . Prototype ID Bank 2 | . 1 1 . Branch Access Points 1 | . 1 . . Fabricator Hacks . | . . . . Repair Station Hacks . | . . . . Recycling Unit Hacks 2 | . . 2 . Retrieve Components 2 | . . 2 . Scanalyzer 5 | . . 3 2 Insert Component 1 | . . 1 . Analyze 1 | . . 1 . Retrieve Study 3 | . . 1 2 Garrison Access Hacks . | . . . . Unauthorized Hacks 8 | . 4 4 . Terminals 5 | . 3 2 . Botnet 5 | . 3 2 . Fabricators . | . . . . Repair Stations . | . . . . Recycling Units 3 | . 1 2 . Tunnel 3 | . 1 2 . Scanalyzers . | . . . . Garrison Access . | . . . . Data Cores Recovered . | . . . . Used . | . . . . Hacking Detections 11 | . 6 4 1 Full Trace Events 1 | . . 1 . Feedback Events . | . . . . Feedback Blocked . | . . . . Robot Schematics Acquired . | . . . . Robots Built . | . . . . Authchips . | . . . . Time . | . . . . Total Robot Build Rating . | . . . . Part Schematics Acquired 1 | . . 1 . Parts Built . | . . . . Authchips . | . . . . Time . | . . . . Total Part Build Rating . | . . . . Part Studies Acquired 2 | . . 1 1 Parts Repaired . | . . . . Time . | . . . . Parts Recycled . | . . . . Recycled Matter . | . . . . Retrieved Matter . | . . . . Retrieved Components 12 | . . 12 . Parts Scanalyzed 1 | . . 1 . Part Schematics Acquired 1 | . . 1 . Parts Damaged . | . . . . Bothacking | -11 -10 -9 -8 ------------ Run | Yrd Mat Mat Mat Used RIF Installer . | . . . . Robots Hacked . | . . . . Non-combat . | . . . . Combat . | . . . . Robot Hacks Applied . | . . . . Relay Couplers Released . | . . . . Fabnet Peak Effective % . | . . . . Robots Rewired . | . . . . Allies Hacked . | . . . . Hacks Repelled . | . . . . Allies | -11 -10 -9 -8 -------- Run | Yrd Mat Mat Mat Total Allies . | . . . . Largest Group . | . . . . Highest-Rated Group . | . . . . Highest-Rated Ally . | . . . . Total Orders . | . . . . Ally Attacks . | . . . . Total Damage . | . . . . Kills . | . . . . Allies Corrupted . | . . . . Allies Melted . | . . . . Intel | -11 -10 -9 -8 ------- Run | Yrd Mat Mat Mat Active Infowar (turns) 2479 | 41 1201 795 442 Sensors 977 | . . 535 442 Terrain 27 | 27 . . . Seismic 2010 | 14 1201 795 . Robot Analysis Total . | . . . . Derelict Logs Recovered . | . . . . Drone Launches . | . . . . Drone Recoveries . | . . . . Exploration | -11 -10 -9 -8 ------------- Run | Yrd Mat Mat Mat Turns Passed 3150 | 111 1201 1336 502 Spaces Moved 1356 | 48 487 640 181 Core 3 | 3 . . . Treads 464 | 45 419 . . Legs . | . . . . Wheels 889 | . 68 640 181 Hover . | . . . . Flight . | . . . . Fastest Speed 50 | 50 135 130 130 Average Speed 160 | 157 199 135 142 Slowest Speed 480 | 200 480 215 160 Overloaded Moves . | . . . . Propulsion Burnouts . | . . . . Robots Hopped . | . . . . Potential Cave-ins . | . . . . Cave-ins Triggered . | . . . . Exploration Rate (%) 36 | 4 75 48 18 Regions Visited 3 Branch Regions . Pre-discovered Areas 3 | . 1 2 . Known Exits Taken . | . . . . Unknown Exits Taken 3 | 1 1 1 . Scrap Searched . | . . . . Spaces Dug . | . . . . Terrain Destroyed 55 | . 2 . 53 Melee . | . . . . Projectile 53 | . . . 53 AOE 2 | . 2 . . Terrain Rammed . | . . . . Walls Destroyed . | . . . . Machines Disabled . | . . . . Actions | -11 -10 -9 -8 --------- Run | Yrd Mat Mat Mat Total 2013 | 65 598 979 371 Wait 375 | . 36 206 133 Move 1353 | 47 486 639 181 Hop . | . . . . Pick Up 51 | 1 10 27 13 Fast Attach 19 | 7 2 9 1 Attach 12 | . 1 8 3 Detach . | . . . . Swap 25 | 2 7 10 6 Drop 20 | . . 11 9 Fire 157 | 7 56 69 25 Melee . | . . . . Ram . | . . . . Kick . | . . . . Crush 1 | 1 . . . Escape Stasis . | . . . . Rewire . | . . . . Trap . | . . . . Miscellaneous . | . . . . Route ------- -11/Scrapyard -10/Materials (discovered 3 exits: *Mat x2 / *Min) -9/Materials (discovered 4 exits: *Mat x2 / [*Min] / [*Sto]) -8/Materials History --------- Turn | Location | Event 14 | -11/Scrapyard | Discovered new exit (range 15) 112 | -11/Scrapyard | Entered Materials 301 | -10/Materials | Build established: Mutant 691 | -10/Materials | Discovered new exit (range 16) 777 | -10/Materials | Discovered new exit (range 13) 957 | -10/Materials | Identified exit to Mines 1248 | -10/Materials | Discovered new exit (range 12) 1313 | -10/Materials | Entered another Materials area 1313 | -9/Materials | Evolved 2 slots: Utility x1, Weapon x1 1333 | -9/Materials | Discovered new exit (range 9) 1628 | -9/Materials | Build established: Skirmisher 1717 | -9/Materials | Lost 4 parts (1p1n2w) 1767 | -9/Materials | Destroyed 8 combat bots 1903 | -9/Materials | Central database locked down 1983 | -9/Materials | Discovered new exit (range 16) 2395 | -9/Materials | Build established: Tank 2428 | -9/Materials | Discovered new exit (range 16) 2625 | -9/Materials | Discovered new exit (range 16) 2649 | -9/Materials | Entered another Materials area 2649 | -8/Materials | Evolved 2 slots: Utility x1, Weapon x1 2771 | -8/Materials | Build established: Scavenger-Tank 3151 | -8/Materials | Self-destructed Last Messages --------------- 03140_ Gauss Cannon broken. 03140_ Overheating: Short circuit. 03141_ Overheating: Matter decay (-3). 03141_ U-05 Engineer builds a Wall. 03142_ Overheating: System interference. 03142_ Gauss Cannon temporarily disabled. 03142_ U-05 Engineer builds a Wall. 03144_ Overheating: Broken Gauss Cannon damaged (-66). 03144_ Overheating: Huge Storage Unit damaged (-348). 03146_ Shield Generator broken. 03146_ Overheating: Short circuit. 03146_ Acquired 19 matter. 03146_ Lgt. Nuclear Core destroyed. 03149_ Overheating: Broken Gauss Cannon damaged (-28). 03150_ Overheating: Wheel+ damaged (-13). 03150_ Overheating: Hacking Suite damaged (-7). 03150_ Overheating: Wheel+ damaged (-1). 03150_ Critical hit (Burn: +37). 03151_ Overheating: System interference. 03151_ Gauss Cannon temporarily disabled. Map ----- +----------------------------------------------------+ | | | | | | | | | | | | | | | | | | | | | | | | | ?????????????????????????????????????????????????? | | ###??????????????????????????????????????????????? | | #??????????????????????????????????????????????? | | #??#################???????????????????????????? | | #??# ## " [##???????????????????????????? | | #??# ## ""S /"#########"###???????????????? | | #??# """## "" !###=![%% +????????? | | #### """## * ;== #####;####??????????????? | | # # """##= #;#!=# #??????????????? | | ! # # ## ##*!%#% #??????????????? | | + ##+#########+#####!!#! #??????????????? | | # % #?# !!%#! #??????????????? | | # % ### !u/[| #??????????????? | | ###+##"# ### |%u@! #??????????????? | | # #!%# # %!g=* #?????H????????? | | # + ### %*# #??????????????? | | # # a+ #??????????????? | | # # #####;##;###########??????????????? | | # ###### #??# #?# ?????????????????????????? | | # ### ## #?# #??##?????????????????????????? | | ###/######### ##;#??????????????????????????????? | | + !???????????????????????????????? | | |# ???????????????????????????????? | | =# ########### ???????????????????????????????? | | # [[#?????? !??????????????????????????????? | | # [[#??????? !#?????????????????????????????? | | + !!#???????!##?????????????????????????????? | | # !!#????????#??????????????????????????????? | | ## #???????????????????????????????????????? | | ## #???????????????????????????????????????? | | ## #####???????????????????????????????????????? | | ## #???????????????????????????????????????????? | | #### #???????????????????????????????????????????? | | ???# #???????????????????????????????????????????? | | ???# #???????????????????????????????????????????? | | ???# #???????????????????????????????????????????? | | ??##+#######?????????????????????????????????????? | | ??# "T" #????#????????????????????????????????? | +----------------------------------------------------+ Best States ------------- Heat Dissipation 31 Energy Generation 14 Energy Capacity 280 Matter Stores 300 Matter Capacity 300 Sight Range 16 Robot Scan Range 14 Terrain Scan Range 16 Terrain Scan Density 10 Armor Coverage 225 Evasion (%) 40 Recoil Reduction 2 Offensive Hacking 10 Item Schematics ----------------- Sensor Array | -9/Materials | Scanalyzed Robot Schematics ------------------ None Fabricated ------------ Nothing Repaired ---------- Nothing Studied --------- Wheel | -9/Materials | Hacked Hpw. Shotgun | -8/Materials | Hacked Alien Tech Used ----------------- None Achievements -------------- None Challenges ------------ None Game ------ Seed HardlightQuantumChronowheel Manual? 0 Play Time 01:10:09 Cumulative 13.5 hours Start 2026.09.09 @ 15:09:51 End 2026.09.10 @ 10:31:40 Sessions 9 Manual Loads 0 Difficulty Rogue Special Mode None Game No. 17 Rogue 17 Adventurer 0 Explorer 0 Win Type - Total 1 Types 1/0/0/0/0/0/0/0/0/0 Lore% 10 Gallery% 20 Achievement% 23 Wizard Run 0 Options --------- Layout 0 ASCII 0 Keyboard 0 Movement Numpad Keybinds 0 Fullscreen 1 Font 18/Terminus Map View 76x50 Zoom Use 0% Tactical HUD 1 Map Filters NONE Filters NONE Steam 1 RUN: 85fa8c7a-09eb-478a-a751-6dfab6e219f3